Cogmind - Beta 13 @@@ ROGUE MODE // 2024.04.13 @ 02:12:31 Player: Mogwok Wargfriend Result: Destroyed by 8R-AWN with 8R-AWN's Boregun Performance ------------- Evolutions (1) 500 Regions Visited (4) 800 Robots Destroyed (54) 270 Value Destroyed (1272) 1272 Prototype IDs (5) 100 Alien Tech Used (0) 0 Bonus (0) 0 TOTAL SCORE: 2942 Bonus ------- None Cogmind --------- Core Integrity 0/400 Matter 0/300 Energy 84/100 System Corruption 19% Temperature Cool (0) Movement Core (250) Ox4 Location -9/Exiles Parts ------- > --- POWER (1) -------- (None) > --- PROPULSION (2) --- (None) > --- UTILITY (4) ------ Heat Sink Medium Storage Unit Hacking Suite > --- WEAPON (2) ------- Heavy Assault Rifle > --- INVENTORY (10) --- Mining Laser Peak State ------------ > --- POWER ------------ Heavy Ion Engine > --- PROPULSION ------- Aluminum Leg Aluminum Leg > --- UTILITY ---------- Medium Storage Unit Sensor Array Light Armor Plating Hacking Suite > --- WEAPON ----------- Improved Assault Rifle Improved Assault Rifle > --- INVENTORY -------- Heavy Ion Engine Aluminum Leg Aluminum Leg Heat Sink High-capacity Matter Pod Heavy EM Pulse Gun Heavy Assault Rifle Heavy Assault Rifle Autogun Mining Laser [Rating: 18] Favorites ----------- Power Heavy Ion Engine Engine Heavy Ion Engine Propulsion Aluminum Leg Leg Aluminum Leg Wheel Compact Wheel Utility Medium Storage Unit Device Sensor Array Storage Medium Storage Unit Hackware Hacking Suite Protection Light Armor Plating Weapon Autogun Energy Gun Medium Laser Ballistic Gun Autogun Special Weapon Mining Laser Build | -11 -10 -9 -9 -9 ------- Run | Yrd Mat Mat Min Exi Slots Evolved 2 | . . 2 . . Power . | . . . . . Propulsion . | . . . . . Utility 2 | . . 2 . . Weapon . | . . . . . Parts Attached 49 | 7 21 13 . 8 Power 6 | 1 2 2 . 1 Engine 6 | 1 2 2 . 1 Core . | . . . . . Reactor . | . . . . . Propulsion 14 | 2 7 3 . 2 Treads . | . . . . . Leg 12 | . 7 3 . 2 Wheel 2 | 2 . . . . Hover . | . . . . . Flight . | . . . . . Utility 12 | 2 5 4 . 1 Device 5 | 1 1 2 . 1 Storage 3 | 1 2 . . . Processor . | . . . . . Hackware 1 | . 1 . . . Protection 3 | . 1 2 . . Artifact . | . . . . . Weapon 17 | 2 7 4 . 4 Energy Gun 5 | 2 2 . . 1 Energy Cannon . | . . . . . Ballistic Gun 11 | . 4 4 . 3 Ballistic Cannon . | . . . . . Launcher . | . . . . . Special Weapon 1 | . 1 . . . Impact Weapon . | . . . . . Slashing Weapon . | . . . . . Piercing Weapon . | . . . . . Special Melee Weapon . | . . . . . Unidentified Prototypes 3 | . 1 2 . . Corrupted Parts 1 | . . 1 . . System Corruption 5 | . . 5 . . Parts Lost 15 | . 2 . . 13 Power 2 | . . . . 2 Propulsion 4 | . . . . 4 Utility 3 | . 1 . . 2 Weapon 6 | . 1 . . 5 Highest Loss Streak 13 | . 1 . . 13 To Critical Strikes 6 | . . . . 6 Average Slot Usage (%) 97 | . 99 96 100 92 Engine 12 | . 14 11 11 9 Leg 22 | . 24 22 22 19 Wheel 1 | . 3 . . . Device 7 | . 3 9 11 10 Storage 12 | . 14 11 11 11 Hackware 9 | . 6 11 11 11 Protection 7 | . 3 9 11 8 Energy Gun 2 | . 5 . . . Ballistic Gun 21 | . 21 21 22 21 Naked Turns . | . . . . . Heaviest Build 28 | 14 25 28 28 28 Greatest Support 32 | 32 32 20 20 20 Greatest Overweight (x) 2 | 2 2 1 1 1 Average Overweight (x) . | . . 1 1 1 Largest Inventory Capacity 10 | 8 10 10 10 10 Average Capacity 9 | 7 9 10 10 10 Most Carried 10 | 8 10 10 10 10 Average Carried 9 | 4 9 9 10 8 Final Capacity 10 | 8 10 10 10 10 Final Carried 10 | 8 10 10 10 1 Class Distribution -------------------- 95% | Mutant 4% | Scavenger-Mutant Dominant Class ---------------- Mutant | -10/Materials Mutant | -9/Materials Mutant | -9/Mines Mutant | -9/Exiles Resources | -11 -10 -9 -9 -9 ----------- Run | Yrd Mat Mat Min Exi Matter Collected 1945 | 270 1010 602 63 . Remotely . | . . . . . Salvage Created 2196 | 133 1050 925 . 88 Parts 125 | 8 70 47 . . Haulers Intercepted 3 | . 2 1 . . Recyclers Shooed 2 | . 2 . . . Parts Field Recycled . | . . . . . Retrieved Matter . | . . . . . Parts Self-Destructed . | . . . . . Prevented . | . . . . . Kills | -11 -10 -9 -9 -9 ------- Run | Yrd Mat Mat Min Exi Combat Hostiles Destroyed 36 | . 17 13 . 6 Guns 36 | . 17 13 . 6 Classes Destroyed 12 | 2 7 2 . 1 Worker 3 | . 2 1 . . Builder 3 | . 2 1 . . Tunneler 3 | 3 . . . . Hauler 3 | . 2 1 . . Recycler 4 | 1 1 2 . . Mechanic 1 | . . 1 . . Operator 3 | . 3 . . . Watcher 4 | . 3 1 . . Swarmer 3 | . 3 . . . Grunt 23 | . 14 9 . . Sentry 4 | . . 4 . . Assembled 6 | . . . . 6 Best Kill Streak 6 | 4 5 4 . 6 Combat Bots Only 6 | . 4 4 . 6 Max Kills in Single Turn 2 | 1 2 2 . 1 Gunslinging 1 | . 1 . . . Exploded . | . . . . . Melee . | . . . . . Uniques/NPCs Destroyed . | . . . . . Combat | -11 -10 -9 -9 -9 -------- Run | Yrd Mat Mat Min Exi Hostile Shots Fired 271 | . 86 54 . 131 Missed 61 | . 15 12 . 34 Damage Taken 3052 | . 833 581 . 1638 Core 565 | . 158 91 . 316 Absorbed by Shields . | . . . . . Redirected to Shielding 3 | . 3 . . . Regen/Repaired (Parts) 26 | . . 26 . . Core Remaining (%) 68 | 100 36 . . . Volleys Fired 204 | 7 87 58 . 52 Largest 2 | 2 2 2 . 2 Hottest 100 | 90 100 46 . 68 Shots Fired 382 | 14 168 116 . 84 Gun 380 | 14 166 116 . 84 Cannon . | . . . . . Launcher . | . . . . . Special 2 | . 2 . . . Kinetic 299 | . 105 116 . 78 Thermal 77 | 14 63 . . . Explosive . | . . . . . Electromagnetic 6 | . . . . 6 Robot Hit Streak 18 | 2 11 18 . 14 Robot Miss Streak 5 | 3 4 5 . 2 Penetration Max . | . . . . . Secondary Targets 5 | . 3 . . 2 Max Gunslinging Chain 1 | . 1 . . 1 Shots Hit Robots 244 | 5 96 76 . 67 Core Hits 101 | 5 45 32 . 19 Critical Kills . | . . . . . Critical Parts Destroyed 1 | . . 1 . . Critical Strikes 5 | 2 2 1 . . Burn 4 | 2 2 . . . Destroy 1 | . . 1 . . Melee Attacks . | . . . . . Impact . | . . . . . Slashing . | . . . . . Piercing . | . . . . . Sneak Attacks . | . . . . . Combat Hostiles . | . . . . . Follow-up Attacks . | . . . . . Damage Inflicted 3684 | 70 1406 1200 . 1008 Guns 3672 | 70 1406 1188 . 1008 Cannons . | . . . . . Explosions . | . . . . . Melee . | . . . . . Ramming 12 | . . 12 . . Kinetic 3093 | . 901 1188 . 1004 Thermal 575 | 70 505 . . . Explosive . | . . . . . Electromagnetic 4 | . . . . 4 Impact . | . . . . . Slashing . | . . . . . Piercing . | . . . . . Highest Corruption 19 | . 6 5 5 19 Average Corruption 6 | . 5 5 5 7 Corruption Purged . | . . . . . Corruption Blocked . | . . . . . Effects 75 | . 31 3 19 22 Message Errors 18 | . 9 1 3 5 Matter Fused 21 | . 8 . 9 4 Heat Flow Errors 7 | . 3 . 3 1 Energy Discharges 4 | . 1 1 . 2 Data Loss (minor) 11 | . 3 . 3 5 Data Loss (major) 4 | . 1 1 1 1 Misfires 5 | . 4 . . 1 Alerts 3 | . 1 . . 2 Weapon Failures 2 | . 1 . . 1 Overload Shots . | . . . . . Overflow Damage . | . . . . . Projectiles . | . . . . . Explosions . | . . . . . Melee . | . . . . . Knockbacks . | . . . . . Impact . | . . . . . Kinetic . | . . . . . Secondary . | . . . . . Self-Inflicted Damage 43 | . . 43 . . Shots 1 | . . 1 . . Rammed . | . . . . . Targets Rammed 1 | . . 1 . . Kicked 1 | . . 1 . . Crushed . | . . . . . Highest Temperature 520 | 150 520 35 211 201 Average Temperature 72 | 65 95 9 92 77 Received Heat Transfer 978 | . 399 219 . 360 Effects 8 | . 8 . . . Shutdowns 3 | . 3 . . . Energy Bleed 2 | . 2 . . . Matter Decay 1 | . 1 . . . Damage (minor) 2 | . 2 . . . Siege Activations . | . . . . . Robots Corrupted . | . . . . . Combat Hostiles . | . . . . . Parts Fried . | . . . . . Impact Corruptions . | . . . . . Robots Melted . | . . . . . Combat Hostiles . | . . . . . Parts Melted 8 | 2 6 . . . Heat Transferred 1880 | 334 1546 . . . Parts Sabotaged . | . . . . . Parts Stolen . | . . . . . Parts Stripped . | . . . . . Power Chain Reactions . | . . . . . Alert | -11 -10 -9 -9 -9 ------- Run | Yrd Mat Mat Min Exi Peak Influence 245 | 20 245 221 41 . Initial 41 | . 13 15 41 . Average 92 | 7 126 77 29 . Maximum Alert Level 1 | . 1 1 . . Low Security (%) 95 | 100 96 92 100 . Level 1 4 | . 3 7 . . Level 2 . | . . . . . Level 3 . | . . . . . Level 4 . | . . . . . Level 5 . | . . . . . High Security . | . . . . . Max Security . | . . . . . Squads Dispatched 6 | . 4 2 . . Investigation . | . . . . . Extermination . | . . . . . Reinforcement 6 | . 4 2 . . Assault . | . . . . . Garrison . | . . . . . Intercept . | . . . . . Searches Triggered . | . . . . . Construction Impeded . | . . . . . Haulers Reinforced . | . . . . . Active Scanning Responses . | . . . . . Cargo Convoy Interrupts . | . . . . . Stealth | -11 -10 -9 -9 -9 --------- Run | Yrd Mat Mat Min Exi Distress Signals 2 | . 1 1 . . Communications Jammed . | . . . . . Distress Signals . | . . . . . Times Spotted 65 | . 31 26 . 8 Peak Tracking Total 9 | . 4 6 . 9 Tactical Retreats . | . . . . . Traps | -11 -10 -9 -9 -9 ------- Run | Yrd Mat Mat Min Exi Traps Triggered 5 | . 5 . . . Indirectly . | . . . . . Trap Hack Attempts . | . . . . . Triggered . | . . . . . Disarmed . | . . . . . Reprogrammed . | . . . . . Reused . | . . . . . Traps Extracted . | . . . . . Installed . | . . . . . Triggered . | . . . . . Machines | -11 -10 -9 -9 -9 ---------- Run | Yrd Mat Mat Min Exi Machines Disabled 8 | . 3 3 . 2 Max in Single Turn 2 | . 1 2 . 1 Machines Repaired . | . . . . . Machines Dismantled . | . . . . . Machines Sabotaged . | . . . . . Overloaded Fab Kills . | . . . . . Hacking | -11 -10 -9 -9 -9 --------- Run | Yrd Mat Mat Min Exi Machines Accessed 6 | . 2 4 . . Terminals 5 | . 2 3 . . Fabricators . | . . . . . Repair Stations 1 | . . 1 . . Recycling Units . | . . . . . Scanalyzers . | . . . . . Garrison Access . | . . . . . Total Hacks 20 | . 7 13 . . Successful 14 | . 4 10 . . Failed 6 | . 3 3 . . Catastrophic . | . . . . . Database Lockouts . | . . . . . Manual 15 | . 7 8 . . Terminals 18 | . 7 11 . . Fabricators . | . . . . . Repair Stations 2 | . . 2 . . Recycling Units . | . . . . . Scanalyzers . | . . . . . Garrison Access . | . . . . . Terminal Hacks 4 | . . 4 . . Robot Analysis 1 | . . 1 . . Prototype ID Bank 1 | . . 1 . . Alert Level 1 | . . 1 . . Unreport Threat 1 | . . 1 . . Fabricator Hacks . | . . . . . Repair Station Hacks 2 | . . 2 . . Scan Component 1 | . . 1 . . Repair 1 | . . 1 . . Recycling Unit Hacks . | . . . . . Scanalyzer . | . . . . . Garrison Access Hacks . | . . . . . Unauthorized Hacks 8 | . 4 4 . . Terminals 8 | . 4 4 . . Assimilate 1 | . 1 . . . Botnet 5 | . 2 3 . . Operators 2 | . 1 1 . . Fabricators . | . . . . . Repair Stations . | . . . . . Recycling Units . | . . . . . Scanalyzers . | . . . . . Garrison Access . | . . . . . Data Cores Recovered . | . . . . . Used . | . . . . . Hacking Detections 5 | . 2 3 . . Full Trace Events 1 | . 1 . . . Feedback Events . | . . . . . Feedback Blocked . | . . . . . Robot Schematics Acquired . | . . . . . Robots Built . | . . . . . Authchips . | . . . . . Time . | . . . . . Total Robot Build Rating . | . . . . . Part Schematics Acquired . | . . . . . Parts Built . | . . . . . Authchips . | . . . . . Time . | . . . . . Total Part Build Rating . | . . . . . Parts Repaired 1 | . . 1 . . Time 26 | . . 26 . . Parts Recycled . | . . . . . Recycled Matter . | . . . . . Retrieved Matter . | . . . . . Retrieved Components . | . . . . . Parts Scanalyzed . | . . . . . Part Schematics Acquired . | . . . . . Parts Damaged . | . . . . . Bothacking | -11 -10 -9 -9 -9 ------------ Run | Yrd Mat Mat Min Exi Used RIF Installer . | . . . . . Robots Hacked . | . . . . . Non-combat . | . . . . . Combat . | . . . . . Robot Hacks Applied . | . . . . . Relay Couplers Released . | . . . . . Fabnet Peak Effective % . | . . . . . Robots Rewired . | . . . . . Allies Hacked . | . . . . . Hacks Repelled . | . . . . . Allies | -11 -10 -9 -9 -9 -------- Run | Yrd Mat Mat Min Exi Total Allies 2 | . . . 2 . Largest Group 2 | . . . 2 2 Highest-Rated Group 47 | . . . 47 47 Highest-Rated Ally 31 | . . . 31 31 Total Orders . | . . . . . Ally Attacks . | . . . . . Total Damage . | . . . . . Kills . | . . . . . Allies Corrupted . | . . . . . Allies Melted . | . . . . . Intel | -11 -10 -9 -9 -9 ------- Run | Yrd Mat Mat Min Exi Robot Analysis Total 1 | . . 1 . . Derelict Logs Recovered 1 | . . . 1 . Drone Launches . | . . . . . Drone Recoveries . | . . . . . Exploration | -11 -10 -9 -9 -9 ------------- Run | Yrd Mat Mat Min Exi Turns Passed 4249 | 88 1732 1210 550 669 Spaces Moved 1922 | 53 864 510 220 275 Core 11 | 11 . . . . Treads . | . . . . . Legs 1729 | . 724 510 220 275 Wheels 182 | 42 140 . . . Hover . | . . . . . Flight . | . . . . . Fastest Speed 50 | 50 100 190 190 190 Average Speed 174 | 93 162 190 190 190 Slowest Speed 260 | 150 260 190 190 190 Overloaded Moves . | . . . . . Propulsion Burnouts . | . . . . . Robots Hopped . | . . . . . Cave-ins Triggered . | . . . . . Exploration Rate (%) 51 | 4 91 43 53 64 Regions Visited 4 Branch Regions 2 Pre-discovered Areas 1 | . . . 1 . Known Exits Taken . | . . . . . Unknown Exits Taken 4 | 1 1 1 1 . Scrap Searched . | . . . . . Spaces Dug 2 | . 2 . . . Terrain Destroyed 2 | . 2 . . . Melee . | . . . . . Projectile 2 | . 2 . . . AOE . | . . . . . Terrain Rammed . | . . . . . Walls Destroyed . | . . . . . Machines Disabled . | . . . . . Actions | -11 -10 -9 -9 -9 --------- Run | Yrd Mat Mat Min Exi Total 2482 | 76 1058 655 352 341 Wait 232 | . 35 61 133 3 Move 1918 | 52 863 509 219 275 Hop . | . . . . . Pick Up 32 | 9 21 2 . . Fast Attach 19 | 7 6 6 . . Attach 14 | . 4 2 . 8 Detach 1 | . . 1 . . Swap 16 | . 11 5 . . Drop 43 | 1 31 10 . 1 Fire 204 | 7 87 58 . 52 Melee . | . . . . . Ram . | . . . . . Kick 1 | . . 1 . . Crush . | . . . . . Escape Stasis . | . . . . . Rewire 2 | . . . . 2 Trap . | . . . . . Miscellaneous . | . . . . . Route ------- -11/Scrapyard -10/Materials (discovered 6 exits: *Mat x3 / [*Min x2] / [*Sub]) -9/Materials (discovered 2 exits: [*Min x2]) -9/Mines -9/Exiles (discovered 1 exit: [*Min]) History --------- Turn | Location | Event 7 | -11/Scrapyard | Discovered new exit (range 16) 89 | -11/Scrapyard | Entered Materials 597 | -10/Materials | Discovered new exit (range 13) 660 | -10/Materials | Build established: Mutant 721 | -10/Materials | Discovered new exit (range 12) 933 | -10/Materials | Core integrity fell below 50% 939 | -10/Materials | Discovered new exit (range 15) 1114 | -10/Materials | Discovered new exit (range 6) 1418 | -10/Materials | Discovered new exit (range 15) 1644 | -10/Materials | Discovered new exit (range 6) 1821 | -10/Materials | Entered another Materials area 1821 | -9/Materials | Evolved 2 slots: Utility x2 2432 | -9/Materials | Repaired Lgt. Armor Plating 2740 | -9/Materials | Discovered new exit (range 10) 2945 | -9/Materials | Discovered new exit (range 15) 3031 | -9/Materials | Entered Mines 3112 | -9/Mines | Learned location of Storage (-7) 3571 | -9/Mines | Deemed a non-threat by the Exiles lab entrance 3571 | -9/Mines | Discovered new exit (range 5) 3581 | -9/Mines | Entered Exiles 3581 | -9/Exiles | Accompanied by 2 allies 3610 | -9/Exiles | Discovered new exit (range 14) 3611 | -9/Exiles | Led the pair of lost Derelicts to a safe place 3637 | -9/Exiles | Met 8R-AWN 3667 | -9/Exiles | Met EX-HEX 3818 | -9/Exiles | Met EX-DEC 3855 | -9/Exiles | Visited The Gauntlet 4014 | -9/Exiles | Met EX-BIN 4096 | -9/Exiles | Attacked by the Exiles 4114 | -9/Exiles | System corruption reached 10% 4139 | -9/Exiles | Core integrity fell below 50% 4213 | -9/Exiles | Core integrity fell below 20% 4250 | -9/Exiles | Destroyed by 8R-AWN with 8R-AWN's Boregun Last Messages --------------- 04204_ Penetrated by HV Slug. 04208_ HV Slug penetrates Wall. 04208_ HV Slug penetrates Machine. 04212_ Penetrated by HV Slug. 04212_ Autogun destroyed. 04216_ Penetrated by HV Slug. 04224_ System corrupted: Component data lost. 04225_ Penetrated by HV Slug. 04225_ HV Slug penetrates Wall. 04229_ Penetrated by HV Slug. 04229_ Hvy. EM Pulse Gun destroyed. 04233_ Penetrated by HV Slug. 04238_ HV Slug penetrates Wall. 04238_ HV Slug penetrates Earth. 04238_ Penetrated by HV Slug. 04239_ Wall collapses. 04239_ System corrupted: Component data lost. 04242_ Penetrated by HV Slug. 04250_ Dropped Hcp. Matter Pod. 04250_ Penetrated by HV Slug. Map ----- +----------------------------------------------------+ | ?????????????????????????????????????????????????? | | ?????????????????????????????????????????????????? | | ?????????????????????????????????????????????????? | | ?????????????????????????????????????????????????? | | ?????????????????????????????????????????????????? | | ?????????????????????????? ???????????????????? | | ????????????????????????# ???????????????????? | | ???????????????????????## ???????????????????? | | ??????????????????????? #??????????????????? | | ???????????????????????? #??????????????????? | | ????????????????????????# #??????????????????? | | ????????????????????????# #?????#????????????? | | ????????????????????????# #?#""""""??????????? | | ???????????????? ?????# #?#"""""""?????????? | | ????????????????? ;???## #?#"""""""#????????? | | ?????????????????? ???;# ###"" """"#????????? | | ?????????????????? ??# """"#????????? | | ??????????????????? ??# """#????????? | | ???????????????????? ?# """#????????? | | ????????????????????# ## """#????????? | | ????????########????? # """#????????? | | ????????# """#?????? ;" """#????????? | | ????????#"" """#??????#;# """"????????? | | ????????#"" #??????# ; """#????????? | | ????????#"" #??????# ; "X" """"????????? | | ????????#"" "#???????#;@ """ #????????? | | ????????# ""#??????# ; %% """""""""#????????? | | ????????#"" ""#??????### % ###########????????? | | ????????### ###??????##" g %#??????????????????? | | ####????### ###?######"" % #??????????????????? | | """#####X# #"###""""""" ##?????????????????? | | """""" " "" ##???###########??? | | "" """ " #####"""""""""##?? | | " " " """ """"##? | | "" " #? | | " """#? | | # " "#? | | ## " "## | | ?##" ""# | | ??#""" """ "" "" | | ?##" ######""" | | ?#"" ""##????#####""" | | ?#""" """##?????????##""" | | ?""" """##???????????#"""" | | #""" ""#???????????##"" | | #"" ########??####"""" | | #""" ## ####""" | | #"" """" | | ##"" | | ?#"""" | +----------------------------------------------------+ Best States ------------- Heat Dissipation 38 Energy Generation 14 Energy Capacity 380 Matter Stores 300 Matter Capacity 300 Sight Range 16 Robot Scan Range 14 Terrain Scan Density 10 Armor Coverage 150 Utility Shielding 33 Evasion (%) 55 Offensive Hacking 10 Item Schematics ----------------- None Robot Schematics ------------------ None Fabricated ------------ Nothing Alien Tech Used ----------------- None Achievements -------------- None Challenges ------------ None Game ------ Seed ElectronMasterLance Manual? 0 Play Time 00:27:32 Cumulative 164.3 hours Start 2024.04.13 @ 01:46:07 End 2024.04.13 @ 02:12:31 Sessions 3 Manual Loads 0 Difficulty Rogue Special Mode None Game No. 158 Rogue 158 Adventurer 0 Explorer 0 Win Type - Total 0 Types 0/0/0/0/0/0/0/0/0 Lore% 53 Gallery% 64 Achievement% 44 Wizard Run 0 Options --------- Layout 0 ASCII 1 Keyboard 1 Movement Numpad Keybinds 0 Fullscreen 2 Font 24/Smallcaps Map View 76x50 Zoom Use 0% Tactical HUD 1 Map Filters NONE Filters NONE Steam 1 RUN: a76bf162-86da-498e-bfb9-ee5e05393567